Cogmind - Beta 12 @@@ ROGUE MODE // 2024.02.07 @ 07:06:08 Player: puppuppit Result: Destroyed by G-50 Soldier with Heavy Laser Performance ------------- Evolutions (5) 2500 Regions Visited (22) 4400 Robots Destroyed (168) 840 Value Destroyed (8466) 8466 Prototype IDs (69) 1380 Alien Tech Used (0) 0 Bonus (9904) 9904 TOTAL SCORE: 27490 Bonus ------- Triggered High Security 500 High Alert Combat Kills 1855 Follower Combat Kills 4442 Entered Garrisons 600 Used RIF Installer 2000 Met Data Miner 300 MAIN.C Attacked Warlord 500 A7 Reached Mainframe 300 Met R17 at Cetus 500 Friendly Fire -1093 Cogmind --------- Core Integrity 0/1000 Matter 18/300 Energy 99/100 System Corruption 11% Temperature Cool (21) Movement Core (50) Location -5/Warlord Parts ------- > --- POWER (2) -------- (None) > --- PROPULSION (4) --- (None) > --- UTILITY (9) ------ Enhanced Optical Array Relay Coupler [Sentry] (10) > --- WEAPON (2) ------- (None) > --- INVENTORY (5) ---- Centrium Medium Armor Plating Tesla Rifle Magnetic Acceleration Cannon Heavy Gauss Cannon Advanced Remote Datajack Peak State ------------ > --- POWER ------------ Particle Reactor > --- PROPULSION ------- Aerolev Unit Combat Gravmag System Improved Antigrav System Improved Gyrokinetic Inverter > --- UTILITY ---------- Lightpack 2.0 Experimental Core Analyzer Remote Force Field Relay Coupler [NC] > --- WEAPON ----------- Mass Driver Advanced Remote Datajack > --- INVENTORY -------- Deuterium Engine Improved Deuterium Engine Cooled Airjet Improved Antigrav System Improved Linear Gravjet High-capacity Matter Pod Improved Kinecellerator Advanced Transmission Jammer Improved Light Armor Plating Advanced Shield Generator Advanced Shield Generator Hacking Suite Authchip [R/Combat] Authchip [R/Combat] Authchip [R/Combat] Authchip [R/Combat] Relay Coupler [NC] Relay Coupler [NC] Relay Coupler [NC] Relay Coupler [NC] Relay Coupler [NC] Relay Coupler [Grunt] Relay Coupler [Grunt] Relay Coupler [Grunt] Relay Coupler [Grunt] Relay Coupler [Brawler] Relay Coupler [Duelist] Relay Coupler [Sentry] Relay Coupler [Sentry] Relay Coupler [Sentry] Relay Coupler [Demolisher] Relay Coupler [Specialist] Relay Coupler [Hunter] Relay Coupler [Hunter] Advanced Assault Cannon Advanced Assault Cannon Advanced Assault Cannon Improved Grenade Launcher [Rating: 107] Favorites ----------- Power Light Angular Momentum Engine Engine Light Angular Momentum Engine Power Core Light Nuclear Core Reactor Particle Reactor Propulsion Combat Gravmag System Wheel Wheel Hover Unit Combat Gravmag System Flight Unit Flight Unit Utility Relay Coupler [NC] Device Remote Force Field Storage Lightpack 2.0 Processor Enhanced Optical Array Hackware Relay Coupler [NC] Protection Improved Light Armor Plating Weapon Mass Driver Energy Gun Advanced Beam Rifle Energy Cannon Beam Cannon Ballistic Gun Light Assault Rifle Ballistic Cannon Mass Driver Launcher Improved Grenade Launcher Special Weapon Advanced Remote Datajack Build | -11 -10 -10 -10 -9 -8 -8 -8 -8 -7 -7 -7 -7 -7 -7 -6 -6 -6 -6 -5 -5 -5 -5 ------- Run | Jun Mat Min Exi Min Mat Gar Mat Gar Fac Gar Fac Low Low Dat Pro Fac Ext Cet Fac Upp Upp War Slots Evolved 10 | . . . . . 4 . . . 2 . . . . . . 2 . . 2 . . . Power 1 | . . . . . . . . . . . . . . . . 1 . . . . . . Propulsion 2 | . . . . . 2 . . . . . . . . . . . . . . . . . Utility 7 | . . . . . 2 . . . 2 . . . . . . 1 . . 2 . . . Weapon . | . . . . . . . . . . . . . . . . . . . . . . . Parts Attached 240 | 9 25 1 2 1 20 21 6 4 9 14 11 8 2 . 2 29 39 6 23 3 3 2 Power 39 | 1 5 . . 1 4 3 2 2 1 2 . 1 1 . . 4 9 1 2 . . . Engine 27 | 1 5 . . 1 4 1 2 2 . 1 . 1 . . . 4 2 1 2 . . . Core 11 | . . . . . . 2 . . 1 . . . 1 . . . 7 . . . . . Reactor 1 | . . . . . . . . . . 1 . . . . . . . . . . . . Propulsion 62 | 4 10 . . . 9 6 2 1 1 4 1 3 1 . . 5 6 1 8 . . . Treads . | . . . . . . . . . . . . . . . . . . . . . . . Leg . | . . . . . . . . . . . . . . . . . . . . . . . Wheel 4 | 4 . . . . . . . . . . . . . . . . . . . . . . Hover 53 | . 5 . . . 9 6 2 1 1 4 1 3 1 . . 5 6 1 8 . . . Flight 5 | . 5 . . . . . . . . . . . . . . . . . . . . . Utility 71 | 2 4 . 1 . 1 4 1 1 6 6 9 2 . . 1 13 10 2 5 2 1 . Device 23 | 1 . . . . . 1 . 1 1 1 1 1 . . 1 3 6 1 2 2 1 . Storage 4 | 1 1 . 1 . 1 . . . . . . . . . . . . . . . . . Processor 9 | . 2 . . . . . . . 1 1 . . . . . 3 1 . 1 . . . Hackware 27 | . 1 . . . . 1 1 . 3 4 7 . . . . 6 3 . 1 . . . Protection 8 | . . . . . . 2 . . 1 . 1 1 . . . 1 . 1 1 . . . Artifact . | . . . . . . . . . . . . . . . . . . . . . . . Weapon 68 | 2 6 1 1 . 6 8 1 . 1 2 1 2 . . 1 7 14 2 8 1 2 2 Energy Gun 10 | . 2 1 . . 3 2 . . . . . . . . . . 1 . . . 1 . Energy Cannon 1 | . 1 . . . . . . . . . . . . . . . . . . . . . Ballistic Gun 14 | 2 2 . . . 2 3 . . . . . . . . . . 3 1 1 . . . Ballistic Cannon 26 | . 1 . . . . 2 . . . . . 2 . . 1 4 6 1 5 1 1 2 Launcher 4 | . . . 1 . 1 . . . 1 1 . . . . . . . . . . . . Special Weapon 13 | . . . . . . 1 1 . . 1 1 . . . . 3 4 . 2 . . . Impact Weapon . | . . . . . . . . . . . . . . . . . . . . . . . Slashing Weapon . | . . . . . . . . . . . . . . . . . . . . . . . Piercing Weapon . | . . . . . . . . . . . . . . . . . . . . . . . Special Melee Weapon . | . . . . . . . . . . . . . . . . . . . . . . . Unidentified Prototypes 9 | . . . . . 5 . . . . 1 . . . . . 1 . 2 . . . . Corrupted Parts 2 | . . . . . . 1 . . . . . . . . . 1 . . . . . . System Corruption 8 | . . . . . . 2 . . . . . . . . . 6 . . . . . . Parts Lost 50 | . 3 . . 1 3 4 . 1 2 . . 2 1 . 1 1 8 2 17 . 1 3 Power 9 | . . . . 1 1 1 . . . . . 1 1 . . . 1 1 2 . . . Propulsion 13 | . 2 . . . . 1 . 1 . . . . . . . . 2 . 7 . . . Utility 17 | . . . . . . 1 . . 1 . . 1 . . 1 1 3 1 4 . 1 3 Weapon 11 | . 1 . . . 2 1 . . 1 . . . . . . . 2 . 4 . . . Highest Loss Streak 5 | . 1 . . 1 1 2 . 1 2 . . 2 1 . 1 1 4 1 5 . 1 2 To Critical Strikes . | . . . . . . . . . . . . . . . . . . . . . . . Average Slot Usage (%) 77 | . 93 100 89 85 78 80 78 80 77 83 81 83 84 84 84 92 96 97 75 31 28 26 Engine 5 | . 9 14 14 14 8 3 7 9 3 . . 2 3 . . 9 7 5 4 . . . Core 2 | . . . . . . 5 1 . 3 2 . . 3 7 7 3 4 6 2 . . . Hover 25 | . 17 28 28 28 34 35 34 35 30 29 30 30 30 30 30 26 25 26 16 . . . Device 4 | . 2 . . . . 2 . 8 4 7 3 7 7 7 7 6 5 6 7 7 3 1 Storage 5 | . 14 14 14 14 9 9 9 9 7 7 7 7 7 7 7 2 . . . . . . Processor 5 | . 9 . . . . . . . 4 2 . . . . . 9 15 13 11 11 11 10 Hackware 10 | . 1 14 14 14 9 3 9 . 7 11 14 11 7 7 7 17 22 18 13 11 11 11 Protection 1 | . . . . . . 2 . . . . 1 2 7 7 7 2 . 5 5 . . . Energy Gun 1 | . 10 11 4 . 7 6 . . . . . . . . . . . . . . . . Ballistic Gun 1 | . 10 14 4 . 2 4 . . . . . . . . . . 1 1 3 . . . Ballistic Cannon 5 | . . . . . . 5 9 9 7 7 7 10 15 15 15 10 6 11 5 . . 1 Launcher 1 | . . . 9 14 7 1 . . 2 4 . . . . . . . . . . . . Special Weapon 2 | . . . . . . 1 8 9 2 2 6 3 . . . 2 4 . . . . . Naked Turns . | . . . . . . . . . . . . . . . . . . . . . . . Heaviest Build 48 | 12 12 12 12 12 23 27 26 31 33 46 46 48 35 31 33 44 34 35 46 15 3 15 Greatest Support 50 | 26 20 12 12 12 32 39 39 39 37 46 48 48 48 47 47 50 39 35 40 3 3 3 Greatest Overweight (x) 4 | . 3 . . . 1 . . . . 1 . . . . . 1 1 . 3 4 . 4 Average Overweight (x) . | . . . . . . . . . . . . . . . . . . . . . . 1 Largest Inventory Capacity 40 | 8 8 8 8 8 40 40 40 40 40 40 40 40 40 40 40 40 5 5 5 5 5 5 Average Capacity 24 | 7 8 8 7 8 39 40 40 40 40 40 40 40 40 40 40 19 5 5 5 5 5 5 Most Carried 40 | 4 8 8 8 8 40 40 40 40 40 40 40 39 36 35 39 39 5 5 5 5 5 5 Average Carried 22 | 1 7 7 7 8 22 39 39 39 38 38 37 37 35 35 36 18 4 4 4 4 4 4 Final Capacity 40 | 8 8 8 8 8 40 40 40 40 40 40 40 40 40 40 40 5 5 5 5 5 5 5 Final Carried 40 | 4 8 8 8 8 37 40 40 40 38 40 37 36 35 35 38 5 5 5 5 5 5 5 Class Distribution -------------------- 25% | Mutant 23% | Botlord-Mutant 18% | Commander-Mutant 17% | Hauler-Mutant 12% | Bothacker-Mutant Dominant Class ---------------- Mutant | -10/Materials Mutant | -10/Mines Mutant | -10/Exiles Mutant | -9/Mines Hauler-Mutant | -8/Materials Hauler-Mutant | -8/Garrison Bothacker-Mutant | -8/Materials Bothacker-Mutant | -8/Garrison Hauler-Mutant | -7/Factory Botlord-Mutant | -7/Garrison Botlord-Mutant | -7/Factory Botlord-Mutant | -7/Lower Caves Botlord-Mutant | -7/Lower Caves Botlord-Mutant | -7/Data Miner Botlord-Mutant | -6/Proximity Caves Commander-Mutant | -6/Factory Commander-Mutant | -6/Extension Commander-Mutant | -6/Cetus Commander-Mutant | -5/Factory Mutant | -5/Upper Caves Mutant | -5/Upper Caves Mutant | -5/Warlord Resources | -11 -10 -10 -10 -9 -8 -8 -8 -8 -7 -7 -7 -7 -7 -7 -6 -6 -6 -6 -5 -5 -5 -5 ----------- Run | Jun Mat Min Exi Min Mat Gar Mat Gar Fac Gar Fac Low Low Dat Pro Fac Ext Cet Fac Upp Upp War Matter Collected 8390 | 282 579 13 20 52 665 1520 314 536 219 810 227 199 233 . 200 629 954 324 371 91 152 . Remotely . | . . . . . . . . . . . . . . . . . . . . . . . Salvage Created 5305 | 122 693 70 20 119 983 627 179 430 113 389 . 36 154 . 104 297 462 191 281 13 22 . Parts 309 | 7 56 3 . 16 64 19 9 29 10 15 . . 1 . 10 16 20 12 21 . 1 . Haulers Intercepted 8 | . 2 . . . 3 . 1 . . . . . . . . . 2 . . . . . Recyclers Shooed 6 | 1 1 . . . 1 . . . 1 . . . . . . 1 . . 1 . . . Parts Field Recycled . | . . . . . . . . . . . . . . . . . . . . . . . Retrieved Matter . | . . . . . . . . . . . . . . . . . . . . . . . Parts Self-Destructed 15 | . . . . . . . . . . . . 1 1 . 12 . . . . . 1 . Prevented . | . . . . . . . . . . . . . . . . . . . . . . . Kills | -11 -10 -10 -10 -9 -8 -8 -8 -8 -7 -7 -7 -7 -7 -7 -6 -6 -6 -6 -5 -5 -5 -5 ------- Run | Jun Mat Min Exi Min Mat Gar Mat Gar Fac Gar Fac Low Low Dat Pro Fac Ext Cet Fac Upp Upp War Combat Hostiles Destroyed 147 | . 13 . . 11 27 32 3 12 3 8 . 1 4 . 6 9 5 4 8 . 1 . Guns 39 | . 11 . . . 6 18 . . . . . . . . . . 2 . 2 . . . Cannons 66 | . 2 . . . . 7 3 12 2 7 . 1 4 . 6 8 3 4 6 . 1 . AOE 40 | . . . . 11 21 6 . . 1 1 . . . . . . . . . . . . Classes Destroyed 19 | 2 7 . . 1 3 . . 2 1 1 . 1 . . . 1 . . . . . . Worker 9 | . 2 . . . 6 . . . 1 . . . . . . . . . . . . . Builder 6 | . . . . . 2 . 1 . . . . . . . . 1 1 . 1 . . . Tunneler 4 | 2 . . . 1 . . . . . . . . . . . . 1 . . . . . Hauler 8 | . 2 . . . 3 . 1 . . . . . . . . . 2 . . . . . Recycler 4 | 1 1 1 . . 1 . . . . . . . . . . . . . . . . . Mechanic 1 | . 1 . . . . . . . . . . . . . . . . . . . . . Operator 3 | . 2 . . . 1 . . . . . . . . . . . . . . . . . Watcher 7 | . 2 . . . 1 . 1 . . . . . . . . . 2 1 . . . . Swarmer 42 | . 6 . . 4 8 4 . 2 . . . . . . 6 5 . 2 5 . . . Cutter 1 | . . . . . . . . 1 . . . . . . . . . . . . . . Grunt 50 | . 7 . . 3 13 5 3 6 2 3 . . 3 . . 2 2 . 1 . . . Brawler 3 | . . . . . . . . . . 2 . . 1 . . . . . . . . . Duelist 2 | . . . . . . . . . 1 . . . . . . 1 . . . . . . Sentry 16 | . . . . . 5 4 . 2 . 2 . . . . . . 2 . 1 . . . Specialist 1 | . . . . . . . . 1 . . . . . . . . . . . . . . Hunter 2 | . . . . . 1 . . . . 1 . . . . . . . . . . . . Programmer 4 | . . . . . . . . . . . . . . . . 1 1 . 1 . 1 . Behemoth 1 | . . . . . . . . . . . . 1 . . . . . . . . . . Cetus Guard 2 | . . . . . . . . . . . . . . . . . . 2 . . . . Assembled 25 | . . . . 6 . 19 . . . . . . . . . . . . . . . . Thug 2 | . . . . . . . . . . 2 . . . . . . . . . . . . Best Kill Streak 13 | 2 6 1 . 7 11 13 2 3 3 2 . 1 4 . 4 5 3 1 2 . 1 . Combat Bots Only 13 | . 3 . . 6 7 13 2 3 3 2 . 1 4 . 4 5 2 1 2 . 1 . Max Kills in Single Turn 4 | 1 1 1 . 4 4 2 2 1 1 2 . 1 1 . 1 2 1 1 1 . 1 . Gunslinging . | . . . . . . . . . . . . . . . . . . . . . . . Exploded 4 | . . . . 4 3 2 . . 1 1 . . . . . . . . . . . . Melee . | . . . . . . . . . . . . . . . . . . . . . . . Uniques/NPCs Destroyed . | . . . . . . . . . . . . . . . . . . . . . . . Combat | -11 -10 -10 -10 -9 -8 -8 -8 -8 -7 -7 -7 -7 -7 -7 -6 -6 -6 -6 -5 -5 -5 -5 -------- Run | Jun Mat Min Exi Min Mat Gar Mat Gar Fac Gar Fac Low Low Dat Pro Fac Ext Cet Fac Upp Upp War Damage Taken 9405 | . 379 45 . 88 591 1311 231 244 143 761 153 249 62 . 283 423 913 323 2642 . 156 408 Core 2001 | . 69 14 . 42 85 210 36 8 24 250 . 33 . . 25 38 138 14 655 . 23 337 Absorbed by Shields 654 | . . . . . . 9 . 72 9 204 33 19 . . 8 62 51 168 19 . . . Regen/Repaired (Parts) 679 | . . . . . 117 . 217 . 76 . . . . . . . 85 . 184 . . . Core Remaining (%) 63 | 100 . . . 50 . . . 38 . . . . . . 52 . . 77 . . . . Volleys Fired 719 | 12 69 3 2 8 75 99 37 67 24 70 31 11 8 . 12 32 68 20 46 2 8 15 Largest 2 | 2 2 2 2 1 2 2 1 1 2 2 1 2 2 . 2 2 2 2 2 1 1 1 Hottest 122 | 40 95 70 70 33 97 118 57 57 93 93 57 96 96 . 101 110 117 110 122 61 61 61 Shots Fired 1066 | 24 127 6 4 8 127 184 37 67 27 76 31 17 16 . 24 53 91 40 82 2 7 16 Gun 404 | 24 102 6 4 . 87 146 . . . . . . . . . . 15 1 19 . . . Cannon 525 | . 25 . . . . 27 31 67 20 56 17 16 16 . 24 50 49 39 63 2 7 16 Launcher 68 | . . . . 8 40 11 . . 3 6 . . . . . . . . . . . . Special 69 | . . . . . . . 6 . 4 14 14 1 . . . 3 27 . . . . . Kinetic 738 | 24 60 3 2 . 32 114 31 67 20 56 17 16 16 . 24 50 59 40 82 2 7 16 Thermal 145 | . 67 . . . 19 59 . . . . . . . . . . . . . . . . Explosive 68 | . . . . 8 40 11 . . 3 6 . . . . . . . . . . . . Electromagnetic 46 | . . 3 2 . 36 . . . . . . . . . . . 5 . . . . . Robot Hit Streak 14 | 8 7 3 2 1 14 8 5 11 4 10 6 5 9 . 5 4 10 4 12 3 4 . Robot Miss Streak 12 | 3 4 4 1 1 7 4 4 3 1 4 7 2 2 . 3 4 12 4 4 . 2 . Penetration Max 1 | . . . . . . 1 1 . . 1 . . . . . . 1 . 1 . . . Secondary Targets 6 | . 2 . . . . 4 . . . . . . . . . . . . . . . . Max Gunslinging Chain 1 | . 1 . . . . 1 . . . . . . . . . . . . . . . . Shots Hit Robots 572 | 16 78 3 2 2 73 92 17 29 16 36 11 12 11 . 12 22 63 18 53 2 4 . Core Hits 327 | 7 40 1 1 19 66 46 7 14 14 16 . 2 5 . 6 27 22 10 22 1 1 . Critical Kills 8 | . . . . . . . . . . . . . . . . . 2 4 2 . . . Critical Parts Destroyed 8 | . . . . . . 2 . . . . . . . . . . 5 1 . . . . Critical Strikes 28 | . . . . . . 3 . 1 1 1 . 3 . . . 1 7 5 4 . 2 . Burn 1 | . . . . . . 1 . . . . . . . . . . . . . . . . Destroy 16 | . . . . . . 2 . . . . . . . . . . 7 5 2 . . . Blast 11 | . . . . . . . . 1 1 1 . 3 . . . 1 . . 2 . 2 . Melee Attacks . | . . . . . . . . . . . . . . . . . . . . . . . Impact . | . . . . . . . . . . . . . . . . . . . . . . . Slashing . | . . . . . . . . . . . . . . . . . . . . . . . Piercing . | . . . . . . . . . . . . . . . . . . . . . . . Sneak Attacks . | . . . . . . . . . . . . . . . . . . . . . . . Combat Hostiles . | . . . . . . . . . . . . . . . . . . . . . . . Follow-up Attacks . | . . . . . . . . . . . . . . . . . . . . . . . Damage Inflicted 16994 | 168 915 44 22 1162 3274 2279 606 848 876 1069 71 346 370 . 411 982 1362 594 1335 70 184 6 Guns 3790 | 168 664 44 22 . 860 1440 . . . . . . . . . . 244 25 323 . . . Cannons 8129 | . 251 . . . . 397 606 848 391 805 71 346 370 . 411 712 1110 569 988 70 184 . Explosions 5037 | . . . . 1162 2414 442 . . 485 264 . . . . . 270 . . . . . . Melee . | . . . . . . . . . . . . . . . . . . . . . . . Ramming 38 | . . . . . . . . . . . . . . . . . 8 . 24 . . 6 Kinetic 10134 | 168 357 8 8 . 325 1295 606 848 391 805 71 346 370 . 411 712 1254 594 1311 70 184 . Thermal 1330 | . 558 . . . 230 542 . . . . . . . . . . . . . . . . Explosive 4652 | . . . . 1162 2414 442 . . 370 264 . . . . . . . . . . . . Electromagnetic 840 | . . 36 14 . 305 . . . 115 . . . . . . 270 100 . . . . . Impact . | . . . . . . . . . . . . . . . . . . . . . . . Slashing . | . . . . . . . . . . . . . . . . . . . . . . . Piercing . | . . . . . . . . . . . . . . . . . . . . . . . Highest Corruption 11 | . . . . . . 2 2 2 . . . . . . . 5 5 . 9 9 7 11 Average Corruption 4 | . . . . . . 2 2 2 . . . . . . . 1 3 . 2 7 6 7 Corruption Purged 10 | . . . . . . . . . . . . . . . . . 5 . 1 4 . . Corruption Blocked . | . . . . . . . . . . . . . . . . . . . . . . . Effects 71 | . . . . . . 3 5 14 . . . . . . . . 1 . 3 9 7 29 Message Errors 20 | . . . . . . 1 1 4 . . . . . . . . . . 1 2 4 7 Matter Fused 12 | . . . . . . 1 1 4 . . . . . . . . . . . 2 1 3 Heat Flow Errors 8 | . . . . . . . . . . . . . . . . . 1 . 1 1 . 5 Energy Discharges 13 | . . . . . . . 2 1 . . . . . . . . . . . 3 1 6 Data Loss (minor) 10 | . . . . . . . 1 3 . . . . . . . . . . 1 . . 5 Data Loss (major) 2 | . . . . . . . . 1 . . . . . . . . . . . . . 1 Misfires 2 | . . . . . . 1 . . . . . . . . . . . . . . . 1 Alerts 3 | . . . . . . . . 1 . . . . . . . . . . . 1 . 1 Weapon Failures 1 | . . . . . . . . . . . . . . . . . . . . . 1 . Overload Shots . | . . . . . . . . . . . . . . . . . . . . . . . Overflow Damage 375 | . 8 . . 26 54 56 15 24 16 47 . 1 . . . . 128 . . . . . Projectiles 223 | . 8 . . . . . 15 24 16 47 . 1 . . . . 112 . . . . . Explosions 152 | . . . . 26 54 56 . . . . . . . . . . 16 . . . . . Melee . | . . . . . . . . . . . . . . . . . . . . . . . Knockbacks 43 | . . . . . . 3 1 4 1 3 . . 1 . 3 2 11 4 5 1 3 1 Impact 1 | . . . . . . . . . . . . . . . . . . . . . . 1 Kinetic 39 | . . . . . . 3 1 3 1 3 . . 1 . 3 2 9 4 5 1 3 . Secondary 3 | . . . . . . . . 1 . . . . . . . . 2 . . . . . Self-Inflicted Damage 250 | . . . . 67 27 47 . . . . . . . . . 28 67 . 11 . . 3 Shots 6 | . . . . 2 1 1 . . . . . . . . . 1 1 . . . . . Rammed 10 | . . . . . . . . . . . . . . . . . 1 . 8 . . 1 Targets Rammed 10 | . . . . . . . . . . . . . . . . . 1 . 8 . . 1 Kicked . | . . . . . . . . . . . . . . . . . . . . . . . Crushed . | . . . . . . . . . . . . . . . . . . . . . . . Highest Temperature 407 | . 146 36 68 . 80 235 185 135 85 152 407 231 303 . 168 306 338 13 132 64 . 253 Average Temperature 80 | . 39 18 35 . 24 71 52 40 31 47 178 68 151 . 68 114 87 5 48 44 . 96 Received Heat Transfer 1938 | . 129 18 . 6 216 338 117 71 28 125 36 36 36 . 12 89 176 25 459 . . 21 Effects 15 | . . . . . . 3 . . . . 6 . 1 . . 3 2 . . . . . Shutdowns 4 | . . . . . . . . . . . 3 . . . . . 1 . . . . . Energy Bleed 4 | . . . . . . 1 . . . . 1 . 1 . . . 1 . . . . . Interference 5 | . . . . . . 2 . . . . . . . . . 3 . . . . . . Matter Decay 1 | . . . . . . . . . . . 1 . . . . . . . . . . . Short Circuit 1 | . . . . . . . . . . . 1 . . . . . . . . . . . Siege Activations . | . . . . . . . . . . . . . . . . . . . . . . . Robots Corrupted 2 | . . . . . . . . . . . . . . . . 1 1 . . . . . Combat Hostiles 1 | . . . . . . . . . . . . . . . . 1 . . . . . . Parts Fried 6 | . . . . . . . . . . . . . . . . 1 5 . . . . . Impact Corruptions 1 | . . . . . . . . . . . . . . . . . 1 . . . . . Robots Melted 1 | . . . . . . 1 . . . . . . . . . . . . . . . . Combat Hostiles 1 | . . . . . . 1 . . . . . . . . . . . . . . . . Parts Melted 2 | . 1 . . . . . . . . . . . . . . . 1 . . . . . Heat Transferred 2613 | . 1218 . . . 407 988 . . . . . . . . . . . . . . . . Parts Sabotaged . | . . . . . . . . . . . . . . . . . . . . . . . Parts Stolen . | . . . . . . . . . . . . . . . . . . . . . . . Parts Stripped . | . . . . . . . . . . . . . . . . . . . . . . . Power Chain Reactions . | . . . . . . . . . . . . . . . . . . . . . . . Missiles Intercepted . | . . . . . . . . . . . . . . . . . . . . . . . Alert | -11 -10 -10 -10 -9 -8 -8 -8 -8 -7 -7 -7 -7 -7 -7 -6 -6 -6 -6 -5 -5 -5 -5 ------- Run | Jun Mat Min Exi Min Mat Gar Mat Gar Fac Gar Fac Low Low Dat Pro Fac Ext Cet Fac Upp Upp War Peak Influence 2380 | 15 390 187 . 179 1121 2017 1341 2231 1770 2380 1586 . . . . 800 519 883 1079 . . . Initial 1249 | . 9 137 . . 69 728 982 871 1171 1239 1249 . . . . 175 301 290 484 . . . Average 983 | 6 237 173 . 66 471 1482 1167 1754 1450 1930 1381 . . . . 435 309 658 798 . . . Maximum Alert Level 5 | . 1 . . . 4 5 4 5 5 5 4 . . . . 3 2 3 3 . . . Low Security (%) 15 | 100 36 100 . 100 28 . . . . . . . . . . 29 20 . . . . . Level 1 14 | . 63 . . . 21 . . . . . . . . . . 4 69 13 . . . . Level 2 11 | . . . . . 23 . . . . . . . . . . 64 10 33 31 . . . Level 3 13 | . . . . . 20 9 19 15 . . . . . . . 1 . 52 68 . . . Level 4 23 | . . . . . 5 48 80 14 63 16 100 . . . . . . . . . . . Level 5 21 | . . . . . . 41 . 70 9 83 . . . . . . . . . . . . High Security . | . . . . . . . . . 26 . . . . . . . . . . . . . Max Security . | . . . . . . . . . . . . . . . . . . . . . . . Squads Dispatched 40 | . 3 1 . 1 4 1 4 . 6 . 5 . . . . 7 2 1 5 . . . Investigation 16 | . 1 . . 1 3 . 3 . 2 . 2 . . . . 2 1 1 . . . . Extermination 4 | . . . . . . . . . . . 1 . . . . 2 . . 1 . . . Reinforcement 13 | . 2 . . . 1 . . . 2 . 1 . . . . 2 1 . 4 . . . Assault 5 | . . 1 . . . 1 . . 1 . 1 . . . . 1 . . . . . . Garrison 2 | . . . . . . . 1 . 1 . . . . . . . . . . . . . Intercept . | . . . . . . . . . . . . . . . . . . . . . . . Searches Triggered . | . . . . . . . . . . . . . . . . . . . . . . . Data Miner Redirects 3 | . . . . . . . . . . . . . . . . 1 1 1 . . . . Construction Impeded 3 | . . . . . . . . . . . . . . . . 1 1 . 1 . . . Haulers Reinforced 1 | . . . . . . . . . 1 . . . . . . . . . . . . . Active Scanning Responses . | . . . . . . . . . . . . . . . . . . . . . . . Cargo Convoy Interrupts . | . . . . . . . . . . . . . . . . . . . . . . . Stealth | -11 -10 -10 -10 -9 -8 -8 -8 -8 -7 -7 -7 -7 -7 -7 -6 -6 -6 -6 -5 -5 -5 -5 --------- Run | Jun Mat Min Exi Min Mat Gar Mat Gar Fac Gar Fac Low Low Dat Pro Fac Ext Cet Fac Upp Upp War Distress Signals 7 | . 2 . . . 1 . 2 . . . . . . . . . 1 . 1 . . . Communications Jammed . | . . . . . . . . . . . . . . . . . . . . . . . Distress Signals . | . . . . . . . . . . . . . . . . . . . . . . . Times Spotted 391 | . 27 2 . 19 31 47 16 33 22 32 20 2 3 . 8 27 27 19 40 2 1 13 Peak Tracking Total 13 | . 5 2 . 12 4 9 4 8 7 4 5 1 3 . 4 6 6 5 9 3 1 13 Tactical Retreats 15 | . 2 1 . . . 5 . . . 1 1 . . . . . 2 . 3 . . . Traps | -11 -10 -10 -10 -9 -8 -8 -8 -8 -7 -7 -7 -7 -7 -7 -6 -6 -6 -6 -5 -5 -5 -5 ------- Run | Jun Mat Min Exi Min Mat Gar Mat Gar Fac Gar Fac Low Low Dat Pro Fac Ext Cet Fac Upp Upp War Traps Triggered 14 | . 1 . . . . . . 9 . 2 . . . . . . 1 . . . . 1 Indirectly . | . . . . . . . . . . . . . . . . . . . . . . . Trap Hack Attempts . | . . . . . . . . . . . . . . . . . . . . . . . Triggered . | . . . . . . . . . . . . . . . . . . . . . . . Disarmed . | . . . . . . . . . . . . . . . . . . . . . . . Reprogrammed . | . . . . . . . . . . . . . . . . . . . . . . . Reused 1 | . . . . . . . . . . . . . . . . 1 . . . . . . Traps Extracted . | . . . . . . . . . . . . . . . . . . . . . . . Installed 4 | . . . . . . . . . . . . . . . . 2 . . 2 . . . Triggered 12 | . . . . . . . . . . . . . . . . 1 1 . . . . 10 Most Traps Carried 2 | . . . . . . . . . . . . 2 2 2 2 2 . . . . . . Machines | -11 -10 -10 -10 -9 -8 -8 -8 -8 -7 -7 -7 -7 -7 -7 -6 -6 -6 -6 -5 -5 -5 -5 ---------- Run | Jun Mat Min Exi Min Mat Gar Mat Gar Fac Gar Fac Low Low Dat Pro Fac Ext Cet Fac Upp Upp War Machines Disabled 50 | . . . . . 7 8 3 10 4 3 3 . . . . 3 5 1 3 . . . Max in Single Turn 3 | . . . . . 1 1 1 2 2 1 1 . . . . 3 3 . . . . . Garrison Access 4 | . . . . . . . . . 1 . 2 . . . . . . . 1 . . . Garrison Relay 13 | . . . . . . 5 . 5 . 3 . . . . . . . . . . . . Phase Generator 2 | . . . . . . 1 . 1 . . . . . . . . . . . . . . Energy Cycler 1 | . . . . . . . . . . . . . . . . . 1 . . . . . Machines Repaired . | . . . . . . . . . . . . . . . . . . . . . . . Machines Sabotaged . | . . . . . . . . . . . . . . . . . . . . . . . Overloaded Fab Kills . | . . . . . . . . . . . . . . . . . . . . . . . Hacking | -11 -10 -10 -10 -9 -8 -8 -8 -8 -7 -7 -7 -7 -7 -7 -6 -6 -6 -6 -5 -5 -5 -5 --------- Run | Jun Mat Min Exi Min Mat Gar Mat Gar Fac Gar Fac Low Low Dat Pro Fac Ext Cet Fac Upp Upp War Machines Accessed 92 | . 7 1 1 1 11 3 7 3 5 3 16 . . 4 . 10 11 3 5 1 . . Terminals 58 | . 6 . . 1 8 3 3 3 1 3 7 . . . . 7 10 3 3 . . . Fabricators 7 | . . . . . . . . . 1 . 4 . . . . 2 . . . . . . Repair Stations 9 | . 1 . . . 2 . 1 . 1 . 2 . . . . . 1 . 1 . . . Recycling Units . | . . . . . . . . . . . . . . . . . . . . . . . Scanalyzers 5 | . . . . . . . 2 . 1 . 1 . . . . 1 . . . . . . Garrison Access 6 | . . . . . 1 . 1 . 1 . 2 . . . . . . . 1 . . . Total Hacks 281 | . 17 1 1 6 34 9 30 7 16 4 39 . . 26 . 34 31 11 14 1 . . Successful 165 | . 8 1 1 1 19 3 20 1 7 2 21 . . 26 . 21 20 5 8 1 . . Failed 114 | . 9 . . 5 14 6 10 6 9 2 18 . . . . 13 10 6 6 . . . Catastrophic 18 | . 3 . . . 4 1 . 3 1 . 3 . . . . 2 . . 1 . . . Database Lockouts 2 | . . . . . 1 . . . . . . . . . . . 1 . . . . . Manual 70 | . 8 . 1 6 11 . 5 . 1 1 12 . . . . 8 14 . 3 . . . Terminals 169 | . 16 . . 6 23 9 11 7 1 4 23 . . . . 25 27 11 6 . . . Fabricators 19 | . . . . . . . . . 4 . 8 . . . . 7 . . . . . . Repair Stations 37 | . 1 . . . 9 . 7 . 5 . 4 . . . . . 4 . 7 . . . Recycling Units . | . . . . . . . . . . . . . . . . . . . . . . . Scanalyzers 19 | . . . . . . . 10 . 5 . 2 . . . . 2 . . . . . . Garrison Access 8 | . . . . . 2 . 2 . 1 . 2 . . . . . . . 1 . . . Terminal Hacks 100 | . 7 1 1 1 10 3 3 1 . 2 9 . . 26 . 12 17 5 1 1 . . Record 17 | . 1 . . . . . . . . . 1 . . 11 . . . 4 . . . . Part Schematic 9 | . . . . . . . . . . . . . . 9 . . . . . . . . Robot Schematic 5 | . . . . . . . . . . . 2 . . 3 . . . . . . . . Robot Analysis 13 | . 4 . . 1 4 . . . . . 1 . . . . 2 1 . . . . . Prototype ID Bank 18 | . 1 . . . 4 . 1 . . . 1 . . 3 . 2 5 . 1 . . . Open Door 8 | . . 1 . . . 2 . . . 1 . . . . . 1 1 1 . 1 . . Level Access Points 1 | . . . . . . . . . . . . . . . . 1 . . . . . . Branch Access Points 5 | . 1 . . . . . 1 . . . 1 . . . . 1 1 . . . . . Emergency Access Points 2 | . . . . . . . . 1 . 1 . . . . . . . . . . . . Machine Index 1 | . . . . . . . . . . . . . . . . . 1 . . . . . Terminal Index 4 | . . . . . 1 . . . . . 1 . . . . 1 1 . . . . . Alert Level 3 | . . . . . . . . . . . 1 . . . . 1 1 . . . . . Unreport Threat 3 | . . . . . . . . . . . . . . . . 2 1 . . . . . Recall Investigation 2 | . . . . . . . . . . . 1 . . . . . 1 . . . . . Zone Layout 7 | . . . . . 1 . 1 . . . . . . . . 1 4 . . . . . Garrison Registry 1 | . . . . . . 1 . . . . . . . . . . . . . . . . EX-Prototype ID Bank 1 | . . . 1 . . . . . . . . . . . . . . . . . . . Fabricator Hacks 14 | . . . . . . . . . . . 7 . . . . 7 . . . . . . Network Status 2 | . . . . . . . . . . . 1 . . . . 1 . . . . . . Load Schematic 6 | . . . . . . . . . . . 3 . . . . 3 . . . . . . Build 6 | . . . . . . . . . . . 3 . . . . 3 . . . . . . Repair Station Hacks 28 | . 1 . . . 8 . 6 . 3 . 1 . . . . . 3 . 6 . . . Scan Component 15 | . . . . . 4 . 3 . 2 . 1 . . . . . 2 . 3 . . . Repair 12 | . . . . . 4 . 3 . 1 . . . . . . . 1 . 3 . . . Refit 1 | . 1 . . . . . . . . . . . . . . . . . . . . . Recycling Unit Hacks . | . . . . . . . . . . . . . . . . . . . . . . . Scanalyzer 16 | . . . . . . . 9 . 3 . 2 . . . . 2 . . . . . . Insert Component 8 | . . . . . . . 4 . 2 . 1 . . . . 1 . . . . . . Analyze 8 | . . . . . . . 5 . 1 . 1 . . . . 1 . . . . . . Garrison Access Hacks 7 | . . . . . 1 . 2 . 1 . 2 . . . . . . . 1 . . . Unlock Access 3 | . . . . . 1 . 1 . 1 . . . . . . . . . . . . . Seal Access 3 | . . . . . . . . . . . 2 . . . . . . . 1 . . . Coupler Status 1 | . . . . . . . 1 . . . . . . . . . . . . . . . Unauthorized Hacks . | . . . . . . . . . . . . . . . . . . . . . . . Terminals . | . . . . . . . . . . . . . . . . . . . . . . . Fabricators . | . . . . . . . . . . . . . . . . . . . . . . . Repair Stations . | . . . . . . . . . . . . . . . . . . . . . . . Recycling Units . | . . . . . . . . . . . . . . . . . . . . . . . Scanalyzers . | . . . . . . . . . . . . . . . . . . . . . . . Garrison Access . | . . . . . . . . . . . . . . . . . . . . . . . Data Cores Recovered 1 | . . . . . . . . . . . . . . . . . . . 1 . . . Used . | . . . . . . . . . . . . . . . . . . . . . . . Hacking Detections 70 | . 7 . . 1 8 2 7 3 4 2 12 . . . . 7 10 3 4 . . . Full Trace Events 21 | . 1 . . 1 5 2 3 2 2 . 2 . . . . 2 . 1 . . . . Feedback Events 1 | . . . . . . . . . . . . . . . . 1 . . . . . . Corruption 1 | . . . . . . . . . . . . . . . . 1 . . . . . . Feedback Blocked . | . . . . . . . . . . . . . . . . . . . . . . . Robot Schematics Acquired 5 | . . . . . . . . . . . 2 . . 3 . . . . . . . . Robots Built 11 | . . . . . . . . . . . 5 . . . . 6 . . . . . . Authchips 4 | . . . . . . . . . . . 1 . . . . 3 . . . . . . Time 638 | . . . . . . . . . . . 308 . . . . 330 . . . . . . Total Robot Build Rating 43 | . . . . . . . . . . . 17 . . . . 26 . . . . . . Part Schematics Acquired 16 | . . . . . . . 4 . 1 . 1 . . 9 . 1 . . . . . . Parts Built . | . . . . . . . . . . . . . . . . . . . . . . . Authchips . | . . . . . . . . . . . . . . . . . . . . . . . Time . | . . . . . . . . . . . . . . . . . . . . . . . Total Part Build Rating . | . . . . . . . . . . . . . . . . . . . . . . . Parts Repaired 12 | . . . . . 4 . 3 . 1 . . . . . . . 1 . 3 . . . Time 577 | . . . . . 113 . 192 . 60 . . . . . . . 22 . 190 . . . Parts Recycled . | . . . . . . . . . . . . . . . . . . . . . . . Recycled Matter . | . . . . . . . . . . . . . . . . . . . . . . . Retrieved Matter . | . . . . . . . . . . . . . . . . . . . . . . . Retrieved Components . | . . . . . . . . . . . . . . . . . . . . . . . Parts Scanalyzed 8 | . . . . . . . 4 . 2 . 1 . . . . 1 . . . . . . Part Schematics Acquired 7 | . . . . . . . 4 . 1 . 1 . . . . 1 . . . . . . Parts Damaged 1 | . . . . . . . 1 . . . . . . . . . . . . . . . Bothacking | -11 -10 -10 -10 -9 -8 -8 -8 -8 -7 -7 -7 -7 -7 -7 -6 -6 -6 -6 -5 -5 -5 -5 ------------ Run | Jun Mat Min Exi Min Mat Gar Mat Gar Fac Gar Fac Low Low Dat Pro Fac Ext Cet Fac Upp Upp War Used RIF Installer 4 | . . . . . . 2 . 1 . 1 . . . . . . . . . . . . Coupler Efficiency 1 | . . . . . . 1 . . . . . . . . . . . . . . . . Code Merge 1 | . . . . . . . . . . 1 . . . . . . . . . . . . Watcher Feeds 1 | . . . . . . . . 1 . . . . . . . . . . . . . . Robots Hacked 38 | . . . . . . . 3 . 3 11 9 1 . . . 3 8 . . . . . Non-combat 13 | . . . . . . . 1 . . . 4 1 . . . 3 4 . . . . . Combat 25 | . . . . . . . 2 . 3 11 5 . . . . . 4 . . . . . Robot Hacks Applied 39 | . . . . . . . 3 . 3 11 10 1 . . . 3 8 . . . . . ignore_repairs 1 | . . . . . . . . . . . . . . . . . 1 . . . . . find_fabricator 1 | . . . . . . . . . . . 1 . . . . . . . . . . . disable_weapons 2 | . . . . . . . . . . 2 . . . . . . . . . . . . overwrite_iff 1 | . . . . . . . . . 1 . . . . . . . . . . . . . formatsys_low 7 | . . . . . . . 1 . . . 2 1 . . . 2 1 . . . . . formatsys_high 27 | . . . . . . . 2 . 2 9 7 . . . . 1 6 . . . . . Relay Couplers Released 56 | . . . . . . 22 . 19 2 13 . . . . . . . . . . . . Machine Destruction 53 | . . . . . . 19 . 19 2 13 . . . . . . . . . . . . Programmers 3 | . . . . . . 3 . . . . . . . . . . . . . . . . Attached 18 | . . . . . . 1 1 . 3 4 5 . . . . 1 2 . 1 . . . Merged Code Value 77 | . . . . . . . . . . 47 . . . . . 19 11 . . . . . Fabnet Peak Effective % . | . . . . . . . . . . . . . . . . . . . . . . . Robots Rewired 23 | . . . 3 . . 3 . . . 3 . . . . . . 14 . . . . . Allies Hacked 4 | . . . . . . . . . . . . . . . . 4 . . . . . . Hacks Repelled . | . . . . . . . . . . . . . . . . . . . . . . . Allies | -11 -10 -10 -10 -9 -8 -8 -8 -8 -7 -7 -7 -7 -7 -7 -6 -6 -6 -6 -5 -5 -5 -5 -------- Run | Jun Mat Min Exi Min Mat Gar Mat Gar Fac Gar Fac Low Low Dat Pro Fac Ext Cet Fac Upp Upp War Total Allies 92 | . . 1 3 . . 4 3 2 3 13 14 1 . . 1 13 34 . . . . . Largest Group 36 | . . 1 4 4 . 4 7 4 6 11 14 11 9 8 9 15 36 34 25 . . . Highest-Rated Group 1139 | . . 31 55 55 . 239 281 224 272 331 382 298 240 219 315 430 1139 1080 763 . . . Highest-Rated Ally 159 | . . 31 31 31 . 146 146 146 146 138 40 36 36 36 96 96 159 159 143 . . . Total Orders 27 | . . . . . . . . . . 2 3 5 . . . 8 9 . . . . . STAY 17 | . . . . . . . . . . 1 1 3 . . . 6 6 . . . . . FOLLOW 8 | . . . . . . . . . . 1 1 1 . . . 2 3 . . . . . DROP 2 | . . . . . . . . . . . 1 1 . . . . . . . . . . Ally Attacks 607 | . . . . 16 . 12 41 44 45 73 44 14 2 . 7 74 115 67 53 . . . Total Damage 16589 | . . . . 160 . 552 802 1454 1016 2250 1395 373 54 . 253 2408 3100 1629 1143 . . . Kills 159 | . . . . 4 . 10 9 22 11 19 18 2 . . 2 19 16 14 13 . . . Allies Corrupted . | . . . . . . . . . . . . . . . . . . . . . . . Allies Melted . | . . . . . . . . . . . . . . . . . . . . . . . Intel | -11 -10 -10 -10 -9 -8 -8 -8 -8 -7 -7 -7 -7 -7 -7 -6 -6 -6 -6 -5 -5 -5 -5 ------- Run | Jun Mat Min Exi Min Mat Gar Mat Gar Fac Gar Fac Low Low Dat Pro Fac Ext Cet Fac Upp Upp War Robot Analysis Total 13 | . 4 . . 1 4 . . . . . 1 . . . . 2 1 . . . . . Derelict Logs Recovered 7 | . . 2 . 1 . . . . . . . . 1 . 1 . . . . 1 1 . Drone Launches . | . . . . . . . . . . . . . . . . . . . . . . . Drone Recoveries . | . . . . . . . . . . . . . . . . . . . . . . . Exploration | -11 -10 -10 -10 -9 -8 -8 -8 -8 -7 -7 -7 -7 -7 -7 -6 -6 -6 -6 -5 -5 -5 -5 ------------- Run | Jun Mat Min Exi Min Mat Gar Mat Gar Fac Gar Fac Low Low Dat Pro Fac Ext Cet Fac Upp Upp War Turns Passed 12391 | 97 734 282 291 241 699 1031 442 934 251 1064 814 290 379 63 331 681 988 388 806 280 247 1058 Spaces Moved 13625 | 52 795 443 450 363 741 1159 397 1315 313 1204 1018 352 398 79 305 705 1312 443 723 270 445 343 Core 1193 | 2 1 . . . . . . . . . . . . . . . . . 132 270 445 343 Treads . | . . . . . . . . . . . . . . . . . . . . . . . Legs . | . . . . . . . . . . . . . . . . . . . . . . . Wheels 87 | 50 37 . . . . . . . . . . . . . . . . . . . . . Hover 12097 | . 509 443 450 363 741 1159 397 1315 313 1204 1018 352 398 79 305 705 1312 443 591 . . . Flight 248 | . 248 . . . . . . . . . . . . . . . . . . . . . Fastest Speed 37 | 50 37 56 56 56 38 38 43 43 48 48 50 50 59 65 65 40 40 43 43 50 50 50 Average Speed 52 | 86 57 56 56 56 42 40 43 44 48 51 52 56 62 65 65 53 43 43 55 51 50 129 Slowest Speed 250 | 100 200 56 56 56 116 43 43 48 48 110 62 60 65 65 65 105 101 43 240 250 50 250 Overloaded Moves . | . . . . . . . . . . . . . . . . . . . . . . . Propulsion Burnouts . | . . . . . . . . . . . . . . . . . . . . . . . Robots Hopped 6 | . 6 . . . . . . . . . . . . . . . . . . . . . Cave-ins Triggered 2 | . . . . . . . . . . 1 . . . . . . . . . . . 1 Exploration Rate (%) 59 | 5 95 90 91 76 64 94 34 93 12 93 32 46 59 69 43 16 94 89 25 56 69 18 Regions Visited 22 Branch Regions 12 Pre-discovered Areas 2 | . . 1 . . . . . . . . . . . 1 . . . . . . . . Known Exits Taken 9 | . 1 . . . 1 . 1 . 1 . 1 . . . . 1 1 1 1 . . . Unknown Exits Taken 10 | 1 . 1 1 1 . . . . . . . 1 1 1 1 . . . . 1 1 . Scrap Searched 12 | . . 1 . 2 . . . . . . . 3 . . 2 . . . . 2 2 . Spaces Dug 52 | . . . . 10 . 12 4 . . . 6 . . . . 2 2 . . . . 16 Terrain Destroyed 833 | . . . . 80 338 139 16 84 27 40 12 4 5 . 10 13 16 12 16 . 4 17 Melee . | . . . . . . . . . . . . . . . . . . . . . . . Projectile 151 | . . . . . 2 7 16 12 5 5 12 4 5 . 10 13 11 12 16 . 4 17 AOE 682 | . . . . 80 336 132 . 72 22 35 . . . . . . 5 . . . . . Terrain Rammed . | . . . . . . . . . . . . . . . . . . . . . . . Walls Destroyed . | . . . . . . . . . . . . . . . . . . . . . . . Machines Disabled . | . . . . . . . . . . . . . . . . . . . . . . . Actions | -11 -10 -10 -10 -9 -8 -8 -8 -8 -7 -7 -7 -7 -7 -7 -6 -6 -6 -6 -5 -5 -5 -5 --------- Run | Jun Mat Min Exi Min Mat Gar Mat Gar Fac Gar Fac Low Low Dat Pro Fac Ext Cet Fac Upp Upp War Total 17982 | 78 961 474 486 391 1005 1553 637 1601 387 1599 1279 425 513 90 413 960 1673 600 1045 409 461 942 Wait 2618 | . 15 17 18 20 103 148 183 74 33 174 202 50 106 12 91 159 150 125 226 130 3 579 Move 13589 | 51 783 442 449 362 740 1156 397 1314 312 1202 1017 351 397 78 304 704 1311 442 722 269 444 342 Hop 5 | . 5 . . . . . . . . . . . . . . . . . . . . . Pick Up 255 | 4 23 5 3 . 48 51 7 27 5 35 9 3 . . 3 11 11 1 7 2 . . Fast Attach 86 | 7 7 1 1 1 13 2 2 . 3 4 2 1 . . 1 9 19 3 6 2 2 . Attach 46 | . 4 . 1 . 4 5 . 1 3 2 1 2 1 . 1 5 5 . 7 1 1 2 Detach 35 | . 8 . . . 5 . . . 1 3 2 1 . . 1 1 4 1 3 1 2 2 Swap 109 | 2 14 . . . 4 14 4 3 3 8 8 5 1 . . 15 15 3 10 . . . Drop 202 | 2 33 6 4 . 13 35 5 19 2 20 3 . . . . 19 25 5 8 2 1 . Fire 719 | 12 69 3 2 8 75 99 37 67 24 70 31 11 8 . 12 32 68 20 46 2 8 15 Melee . | . . . . . . . . . . . . . . . . . . . . . . . Ram 10 | . . . . . . . . . . . . . . . . . 1 . 8 . . 1 Kick . | . . . . . . . . . . . . . . . . . . . . . . . Crush . | . . . . . . . . . . . . . . . . . . . . . . . Escape Stasis 133 | . . . . . . . . 96 . 25 . . . . . . 11 . . . . 1 Rewire 171 | . . . 8 . . 43 2 . 1 56 4 1 . . . 3 53 . . . . . Trap 4 | . . . . . . . . . . . . . . . . 2 . . 2 . . . Miscellaneous . | . . . . . . . . . . . . . . . . . . . . . . . Route ------- -11/Junkyard -10/Materials (discovered 4 exits: [*Mat x3] / *Min) -10/Mines (discovered 2 exits: [*Mat] / *Exi) -10/Exiles -9/Mines -8/Materials (discovered 3 exits: *Fac x2 / Gar) -8/Garrison (discovered 3 exits: *Mat x3) -8/Materials (discovered 2 exits: *Fac / Gar) -8/Garrison (discovered 4 exits: *Fac x3 / [*Mat]) -7/Factory -7/Garrison (discovered 4 exits: *Fac x3 / *Fac) -7/Factory (discovered 3 exits: *Fac / *Low x2) -7/Lower Caves -7/Lower Caves -7/Data Miner -6/Proximity Caves -6/Factory (discovered 8 exits: *Fac x4 / Low x2 / *Ext x2) -6/Extension (discovered 3 exits: *Fac x2 / *Cet) -6/Cetus (discovered 2 exits: *Fac / [*Arc]) -5/Factory -5/Upper Caves -5/Upper Caves (discovered 2 exits: [*Fac] / [*War]) -5/Warlord (discovered 1 exit: [*Pro]) History --------- Turn | Location | Event 23 | -11/Junkyard | Discovered new exit (range 16) 98 | -11/Junkyard | Entered Materials 99 | -10/Materials | Identified exit to Mines 237 | -10/Materials | Discovered new exit (range 15) 301 | -10/Materials | Build established: Mutant 501 | -10/Materials | Discovered new exit (range 9) 738 | -10/Materials | Discovered new exit (range 12) 832 | -10/Materials | Entered Mines 850 | -10/Mines | Found a damaged Exp. Sensor Array with a note attached 852 | -10/Mines | Found Prototype Device 879 | -10/Mines | Met a Derelict who couldn't figure out how to use a Trap Extractor 897 | -10/Mines | Learned location of Storage (-9) 950 | -10/Mines | Discovered new exit (range 12) 992 | -10/Mines | Learned location of 1 exit from Materials 1038 | -10/Mines | Received a Rocket Launcher from a helpful Derelict 1073 | -10/Mines | Met a Derelict testing a Signal Generator 1076 | -10/Mines | Found Signal Generator 1106 | -10/Mines | Deemed a non-threat by the Exiles lab entrance 1106 | -10/Mines | Discovered new exit (range 5) 1114 | -10/Mines | Entered Exiles 1114 | -10/Exiles | Found Exiles lab destroyed 1114 | -10/Exiles | Accompanied by 1 ally 1194 | -10/Exiles | Opened EX-Vault 1205 | -10/Exiles | Found Lightpack 2.0 1383 | -10/Exiles | Discovered new exit (range 10) 1405 | -10/Exiles | Entered Mines 1405 | -9/Mines | Accompanied by 4 allies 1430 | -9/Mines | Found a hidden stash of uninstalled traps 1524 | -9/Mines | Learned Materials terminal intel 1524 | -9/Mines | Discovered new exit (range 9) 1562 | -9/Mines | Assembled infested the area 1567 | -9/Mines | Assisted by a Guerilla fighting off Assembled 1646 | -9/Mines | Entered Materials 1646 | -8/Materials | Evolved 4 slots: Propulsion x2, Utility x2 1647 | -8/Materials | Identified exit to Factory 1648 | -8/Materials | Loaded intel: 12 terminal locations 1658 | -8/Materials | Identified exit to Garrison 1769 | -8/Materials | Repaired Hover Unit 1797 | -8/Materials | Repaired Hover Unit 1825 | -8/Materials | Repaired Lgt. Ion Engine 1938 | -8/Materials | Build established: Hauler-Mutant 2014 | -8/Materials | Discovered exit to Factory (range 12) 2289 | -8/Materials | Central database locked down 2307 | -8/Materials | Repaired Cld. Airjet 2313 | -8/Materials | Destroyed 7 combat bots 2345 | -8/Materials | Entered Garrison 2349 | -8/Garrison | Discovered new exit (range 58) 2349 | -8/Garrison | Discovered new exit (range 75) 2349 | -8/Garrison | Discovered new exit (range 59) 2398 | -8/Garrison | Installed Relay Interface Framework 2418 | -8/Garrison | Phase Generator disabled 2425 | -8/Garrison | Triggered checkpoint 2431 | -8/Garrison | Expanded RIF knowledge: Coupler Efficiency 2445 | -8/Garrison | Garrison Relay disabled 2465 | -8/Garrison | Triggered checkpoint 2470 | -8/Garrison | Assembled breached garrison interior 2743 | -8/Garrison | Destroyed 13 combat bots 2818 | -8/Garrison | Garrison Relay disabled 2840 | -8/Garrison | Garrison Relay disabled 2877 | -8/Garrison | Rescued HV-R5K 2929 | -8/Garrison | Core integrity fell below 50% 3314 | -8/Garrison | Garrison Relay disabled 3376 | -8/Garrison | Entered Materials 3376 | -8/Materials | Accompanied by 4 allies (HV-R5K) 3528 | -8/Materials | Repaired Broken Cld. Airjet 3528 | -8/Materials | Build established: Bothacker-Mutant 3589 | -8/Materials | Repaired Aerolev Unit 3635 | -8/Materials | Repaired Remote Datajack 3725 | -8/Materials | Discovered exit to Factory (range 4) 3774 | -8/Materials | Garrison activated, responded to threat 3806 | -8/Materials | Identified exit to Garrison 3818 | -8/Materials | Entered Garrison 3818 | -8/Garrison | Accompanied by 4 allies (HV-R5K) 3910 | -8/Garrison | Garrison Relay disabled 3951 | -8/Garrison | Triggered checkpoint 3956 | -8/Garrison | Triggered checkpoint 3986 | -8/Garrison | Triggered checkpoint 4040 | -8/Garrison | Discovered exit to Factory (range 12) 4082 | -8/Garrison | Discovered new exit (range 5) 4114 | -8/Garrison | Rescued a captive Derelict 4118 | -8/Garrison | Rescued a captive Derelict 4132 | -8/Garrison | Garrison Relay disabled 4198 | -8/Garrison | Triggered checkpoint 4243 | -8/Garrison | Discovered exit to Factory (range 11) 4252 | -8/Garrison | Triggered checkpoint 4263 | -8/Garrison | Expanded RIF knowledge: Watcher Feeds 4266 | -8/Garrison | Garrison Relay disabled 4365 | -8/Garrison | Discovered exit to Factory (range 11) 4380 | -8/Garrison | Spotted B-75 Beast 4440 | -8/Garrison | Triggered checkpoint 4467 | -8/Garrison | Garrison Relay disabled 4564 | -8/Garrison | Phase Generator disabled 4573 | -8/Garrison | Garrison Relay disabled 4752 | -8/Garrison | Entered Factory 4752 | -7/Factory | Accompanied by 3 allies (HV-R5K) 4752 | -7/Factory | Evolved 2 slots: Utility x2 4851 | -7/Factory | Repaired Aerolev Unit 4936 | -7/Factory | High security lockdown imminent 4964 | -7/Factory | Identified exit to Garrison 5003 | -7/Factory | Entered Garrison 5003 | -7/Garrison | Accompanied by 4 allies (HV-R5K) 5026 | -7/Garrison | Expanded RIF knowledge: Code Merge 5052 | -7/Garrison | Triggered checkpoint 5074 | -7/Garrison | Triggered checkpoint 5126 | -7/Garrison | Rescued a captive Derelict 5135 | -7/Garrison | Build established: Hauler-Mutant 5145 | -7/Garrison | Discovered new exit (range 10) 5160 | -7/Garrison | Triggered checkpoint 5176 | -7/Garrison | Garrison Relay disabled 5246 | -7/Garrison | Triggered checkpoint 5273 | -7/Garrison | Discovered new exit (range 10) 5377 | -7/Garrison | Found Prototype Processor 5377 | -7/Garrison | Identified Exp. Core Analyzer 5422 | -7/Garrison | Triggered checkpoint 5470 | -7/Garrison | Triggered checkpoint 5489 | -7/Garrison | Garrison Relay disabled 5520 | -7/Garrison | Discovered new exit (range 13) 5586 | -7/Garrison | Triggered checkpoint 5599 | -7/Garrison | Discovered new exit (range 5) 5628 | -7/Garrison | Build established: Botlord-Mutant 5678 | -7/Garrison | Triggered checkpoint 5752 | -7/Garrison | Triggered checkpoint 5777 | -7/Garrison | Garrison Relay disabled 5799 | -7/Garrison | P-60 Hacker assimilated allied Fighter 4a 5815 | -7/Garrison | Crushed by falling debris 6067 | -7/Garrison | Entered Factory 6067 | -7/Factory | Accompanied by 8 allies 6364 | -7/Factory | Fabricated O-24 Administrator (x1) 6414 | -7/Factory | Discovered new exit (range 15) 6467 | -7/Factory | First assault squad dispatched 6468 | -7/Factory | Identified exit to Lower Caves 6576 | -7/Factory | Fabricated H-55 Commando? 6855 | -7/Factory | Fabricated P-60 Hacker? 6881 | -7/Factory | Entered Lower Caves 6881 | -7/Lower Caves | Accompanied by 11 allies 7016 | -7/Lower Caves | Spotted B-75 Beast 7069 | -7/Lower Caves | Destroyed B-75 Beast 7109 | -7/Lower Caves | Discovered new exit (range 14) 7171 | -7/Lower Caves | Entered another Lower Caves area 7171 | -7/Lower Caves | Accompanied by 9 allies 7184 | -7/Lower Caves | Learned location of 1 exit from Factory 7401 | -7/Lower Caves | Encountered a Warlord checkpoint 7475 | -7/Lower Caves | Discovered new exit (range 7) 7550 | -7/Lower Caves | Entered Data Miner 7550 | -7/Data Miner | Accompanied by 8 allies 7550 | -7/Data Miner | Discovered new exit (range 6) 7563 | -7/Data Miner | Met Data Miner 7577 | -7/Data Miner | Learned location of Section 7 (-3) 7577 | -7/Data Miner | Acquired the access code to Warlord's prototype stash 7585 | -7/Data Miner | Received God Mode back door access code from Data Miner 7613 | -7/Data Miner | Entered Proximity Caves 7613 | -6/Proximity Caves | Accompanied by 8 allies 7647 | -6/Proximity Caves | Escorted by Enhanced Grunt 7728 | -6/Proximity Caves | Spotted B-75 Beast 7740 | -6/Proximity Caves | Allies destroyed B-75 Beast 7863 | -6/Proximity Caves | Learned Factory stockpile data 7894 | -6/Proximity Caves | Discovered new exit (range 15) 7944 | -6/Proximity Caves | Entered Factory 7944 | -6/Factory | Accompanied by 9 allies 7944 | -6/Factory | Evolved 2 slots: Power x1, Utility x1 7945 | -6/Factory | Identified exit to Lower Caves 8121 | -6/Factory | Fabricated P-60 Hacker (x2) 8134 | -6/Factory | Hacker 5b assimilated hostile G-50 Soldier 8142 | -6/Factory | Hacker 5b assimilated hostile G-50 Soldier 8148 | -6/Factory | Discovered new exit (range 13) 8211 | -6/Factory | Hacker 5a assimilated hostile G-50 Soldier 8248 | -6/Factory | Fabricated P-60 Hacker? 8275 | -6/Factory | Fabricated H-66 Slayer? 8294 | -6/Factory | First assault squad dispatched 8308 | -6/Factory | Identified exit to Factory 8311 | -6/Factory | Incoming assault squad redirected 8412 | -6/Factory | Discovered new exit (range 6) 8426 | -6/Factory | Identified exit to Extension 8527 | -6/Factory | Hacker 5c assimilated hostile S-27 Virus 8536 | -6/Factory | Build established: Commander-Mutant 8625 | -6/Factory | Entered Extension 8625 | -6/Extension | Accompanied by 15 allies 8665 | -6/Extension | Identified exit to Cetus 8670 | -6/Extension | Rescued a captive Derelict 8671 | -6/Extension | Rescued a captive Derelict 8676 | -6/Extension | Central database locked down 8701 | -6/Extension | Rescued a captive Derelict 8840 | -6/Extension | Rescued a captive Derelict 8846 | -6/Extension | Spotted B-75 Beast 8867 | -6/Extension | Spotted B-75 Beast 8885 | -6/Extension | Allies destroyed B-75 Beast 8904 | -6/Extension | Allies destroyed B-75 Beast 8929 | -6/Extension | Lost 4 parts (1p1n1u1w) 8963 | -6/Extension | Discovered exit to Factory (range 3) 9011 | -6/Extension | Rescued a captive Derelict 9013 | -6/Extension | Rescued A7 9055 | -6/Extension | Rescued a captive Derelict 9055 | -6/Extension | Rescued a captive Derelict 9075 | -6/Extension | Incoming investigation squad redirected 9122 | -6/Extension | Repaired Flak Gun 9128 | -6/Extension | Rescued a captive Derelict 9144 | -6/Extension | Rescued a captive Derelict 9144 | -6/Extension | Rescued a captive Derelict 9149 | -6/Extension | Rescued a captive Derelict 9162 | -6/Extension | Rescued a captive Derelict 9221 | -6/Extension | Discovered exit to Factory (range 10) 9439 | -6/Extension | Disrupted transfer network 9613 | -6/Extension | Entered Cetus 9613 | -6/Cetus | Accompanied by 34 allies (A7) 9618 | -6/Cetus | Acquired a Cetus Manufacturing Module code from A7 9618 | -6/Cetus | Spotted Cetus Guard 9618 | -6/Cetus | Spotted Cetus Guard 9618 | -6/Cetus | Spotted Cetus Guard 9618 | -6/Cetus | Spotted Cetus Guard 9628 | -6/Cetus | Allies destroyed Cetus Guard 9635 | -6/Cetus | Destroyed Cetus Guard 9637 | -6/Cetus | Allies destroyed Cetus Guard 9638 | -6/Cetus | Allies destroyed Cetus Guard 9673 | -6/Cetus | Incoming investigation squad redirected 9689 | -6/Cetus | Discovered new exit (range 22) 9696 | -6/Cetus | Escorted A7 to Cetus Mainframe 9794 | -6/Cetus | Cetus Manufacturing Module disabled 9879 | -6/Cetus | Discovered exit to Factory (range 27) 9882 | -6/Cetus | Spotted Cetus Guard 9882 | -6/Cetus | Spotted Cetus Guard 9882 | -6/Cetus | Spotted Cetus Guard 9886 | -6/Cetus | Spotted Cetus Guard 9887 | -6/Cetus | Destroyed Cetus Guard 9891 | -6/Cetus | Allies destroyed Cetus Guard 9904 | -6/Cetus | Allies destroyed Cetus Guard 9906 | -6/Cetus | Allies destroyed Cetus Guard 9907 | -6/Cetus | Met Revision 17 10001 | -6/Cetus | Entered Factory 10001 | -5/Factory | Accompanied by 25 allies (A7) 10001 | -5/Factory | Evolved 2 slots: Utility x2 10006 | -5/Factory | Received a hacking code to weaken MAIN.C 10079 | -5/Factory | Repaired Imp. Airjet 10136 | -5/Factory | Repaired Imp. Gravmag System 10208 | -5/Factory | Repaired Imp. Airjet 10557 | -5/Factory | Lost 3 parts (1p2n) 10629 | -5/Factory | Lost 5 parts (1p2n1u1w) 10731 | -5/Factory | Lost 5 parts (1n2u2w) 10748 | -5/Factory | Core integrity fell below 50% 10787 | -5/Factory | Lost 3 parts (1n1u1w) 10796 | -5/Factory | Discovered new exit (range 22) 10798 | -5/Factory | Identified exit to Upper Caves 10807 | -5/Factory | Entered Upper Caves 10985 | -5/Upper Caves | Learned Factory security intel 11047 | -5/Upper Caves | Build established: Mutant 11085 | -5/Upper Caves | Discovered new exit (range 6) 11087 | -5/Upper Caves | Attracted the attention of an 0b10 checkpoint 11087 | -5/Upper Caves | Entered another Upper Caves area 11087 | -5/Upper Caves | Spotted B-75 Beast 11096 | -5/Upper Caves | Discovered new exit (range 14) 11236 | -5/Upper Caves | Learned location of 1 exit from Factory 11238 | -5/Upper Caves | Discovered new exit (range 8) 11334 | -5/Upper Caves | Entered Warlord 11434 | -5/Warlord | Discovered new exit (range 16) 11598 | -5/Warlord | RIF detected upon attempting to enter Warlord's base 11598 | -5/Warlord | Attacked by Warlord forces 11724 | -5/Warlord | Crushed by falling debris 11755 | -5/Warlord | Warlord's base attacked by MAIN.C 12105 | -5/Warlord | Warlord forces counterattacked 12371 | -5/Warlord | Spotted Striker 12379 | -5/Warlord | Core integrity fell below 20% 12391 | -5/Warlord | System corruption reached 10% 12392 | -5/Warlord | Spotted Executioner 12392 | -5/Warlord | Destroyed by G-50 Soldier with Heavy Laser Last Messages --------------- 12163_ System corrupted: Heat flow error (+275). 12182_ System corrupted: Component data lost. 12206_ System corrupted: Energy discharge (-35). 12245_ ANNOUNCEMENT: MAIN.C reinforcements approaching through caves, arriving soon. 12250_ System corrupted: Energy discharge (-34). 12255_ ANNOUNCEMENT: Detected 2 Melee squads, 2 Grunt squads, with prototype support. 12335_ :U9LTYP 556,B5B1JYSXBQLUPC 12345_ ANNOUNCEMENT: MAIN.C reinforcements approaching through caves, arriving soon. 12355_ ANNOUNCEMENT: Detected 1 Melee squad, 1 Hunter squad, 2 Mixed squads, with prototype support. 12365_ Imp. Target Analyzer destroyed. 12369_ System corrupted: Energy discharge (-34). 12390_ Relay Coupler [NC] destroyed. 12390_ System corrupted by crushing effect (+4). 12390_ Knocked back. 12392_ Slammed into G-67 Veteran. 12392_ G-67 Veteran knocked back. Map ----- +----------------------------------------------------+ | ??????????????????????????????? | | ??????????????????????????????? | | ????????####??????????????????? | | ???????## ##??????????###????? | | ??????## #?????????? ###??? | | ??????# #?????????? ##?? | | ????### ##????????? < #?? | | ????# " #????????? ??? | | ????### ##???????? #??? | | ??????## #??????? #???? | | ???????### ##?????? #???? | | ?????????## #?????? ^#????? | | ??????????## #???### #?????? | | ???????????# ##### ##????? | | ???????????# ###?? | | ???????????## ### ##??? #?? | | ????????????## #????? ?? | | ?????????????### ##???? ?? | | ???????????????# #???? #?? | | ???????????????## ##??? #?? | | ????????????????## #??? ##? | | ##???????????????## #### #? | | "############?????## #;# #?? | | """"""""""""#????###; ; #??? | | """"""""""""#?#### ;=%big #???? | | ### ##;%!h @##??? | | + %%h%%#gb%#??? | | + = ";;#l #??? | | #### #; # #??? | | """"""""""""#??## #####b ##?? | | """"""""""""#???# #?### #?? | | "############???# #### ; #?? | | ##?????????????## #?# #?? | | ??????????????## ### #?? | | ??????????????# ### ##?? | | ?????????????## ##?# #??? | | ?????????????# #??## ##??? | | ?????????????# ^ #???## #???? | | ##???????????# ##????# K #???? | | #???????????# #?????## s##??? | | #??????????## %##????## #??? | | #?????????## ##??## #??? | | #?????????# ##?# s #??? | | #?????#####^ ## ### #??? | | ####### # #### ## #??? | | # # " #?##^ ## #??? | | # ##### #??# ## ##??? | | ###???# #" #?## #???? | | ??????###### #??### ##???? | | ??????????? ##????######????? | +----------------------------------------------------+ Best States ------------- Heat Dissipation 59 Energy Generation 31 Energy Capacity 370 Matter Stores 300 Matter Capacity 300 Sight Range 22 Terrain Scan Range 16 Terrain Scan Density 10 Jamming Range 16 Corruption Containment 12 Armor Coverage 450 Resistance: EM 25 Evasion (%) 62 Targeting Accuracy 6 Target Analysis 6 Core Analysis 8 Matter Filtering 30 Kinecelleration 40 Offensive Hacking 22 Defensive Hacking 10 Relay Coupler Types 3 Relay Coupler Value 80 Authchip Count 11 Item Schematics ----------------- Cld. Airjet | -8/Materials | Scanalyzed System Shield | -8/Materials | Scanalyzed Remote Shield | -8/Materials | Scanalyzed Aerolev Unit | -8/Materials | Scanalyzed Adv. Assault Cannon | -7/Factory | Scanalyzed Imp. System Guard | -7/Factory | Scanalyzed Combat Drone Bay | -7/Data Miner | Free Lgt. Regenerative Plating | -7/Data Miner | Free Biomechanical Wings | -7/Data Miner | Free Thermal Defense Suite | -7/Data Miner | Free Imp. Heavy Machine Gun | -7/Data Miner | Free Gyrokinetic Inverter | -7/Data Miner | Free Adv. Field Recycling Unit | -7/Data Miner | Free Adv. Actuator Array | -7/Data Miner | Free Adv. Plasma Cannon | -7/Data Miner | Free Imp. Airjet | -6/Factory | Scanalyzed Robot Schematics ------------------ O-24 Administrator | -7/Factory | Hacked P-60 Hacker | -7/Factory | Hacked X-62 Marksman | -7/Data Miner | Free H-66 Slayer | -7/Data Miner | Free D-63 Destroyer | -7/Data Miner | Free Fabricated ------------ O-24 Administrator | x1 | -7/Factory | Authchip H-55 Commando | x2 | -7/Factory | Preloaded P-60 Hacker | x2 | -7/Factory P-60 Hacker | x2 | -6/Factory | Authchip P-60 Hacker | x2 | -6/Factory | Authchip H-66 Slayer | x2 | -6/Factory | Authchip Alien Tech Used ----------------- None Achievements -------------- Beloved Main Advantage Packrat We Are Legion Challenges ------------ None Game ------ Seed NavigationImpulseNetwork Manual? 0 Play Time 04:16:14 Cumulative 105.3 hours Start 2024.02.07 @ 02:53:24 End 2024.02.07 @ 07:06:08 Sessions 1 Manual Loads 0 Difficulty Rogue Special Mode None Game No. 61 Rogue 61 Adventurer 0 Explorer 0 Win Type - Total 0 Types 0/0/0/0/0/0/0/0/0 Lore% 57 Gallery% 57 Achievement% 49 Wizard Run 0 Options --------- ASCII 0 Keyboard 1 Movement Arrows Keybinds 0 Fullscreen 1 Font 12/Proggy Map View 83x54 Tactical HUD 1 Map Filters NONE Filters NONE Steam 0 RUN: 7d29a757-58f1-4674-ad3f-bda1d452c3a0